[Event "FIDE World Rapid Chess Championship 2021"]
[White "Svane, Rasmus"]
[Black "Maghsoodloo, Parham"]
[WhiteFideId "4657101"]
[BlackFideId "12539929"]
[WhiteElo "2677"]
[BlackElo "2512"]
[Result "1/2-1/2"]
[Round "12"]
[TimeControl "900+10"]
[Date "2021.12.28"]
[WhiteClock "0:01:01"]
[BlackClock "0:00:24"]

1. Nf3 {[%clk 0:15:00]}  d5 {[%clk 0:15:19]} 2. g3 {[%clk 0:15:27]}  c6 {[%clk 0:15:19]} 3. Bg2 {[%clk 0:15:27]}  Bf5 {[%clk 0:15:19]} 4. O-O {[%clk 0:15:27]}  Nd7 {[%clk 0:15:19]} 5. c4 {[%clk 0:15:27]}  e6 {[%clk 0:15:19]} 6. Qb3 {[%clk 0:15:27]}  Nc5 {[%clk 0:14:22]} 7. Qc3 {[%clk 0:14:50]}  Ne4 {[%clk 0:14:22]} 8. Qb3 {[%clk 0:14:50]}  Nc5 {[%clk 0:14:22]} 9. Qc3 {[%clk 0:14:58]}  Nf6 {[%clk 0:13:55]} 10. d3 {[%clk 0:14:58]}  Be7 {[%clk 0:13:55]} 11. b4 {[%clk 0:14:58]}  Ncd7 {[%clk 0:13:55]} 12. Bb2 {[%clk 0:14:58]}  a5 {[%clk 0:13:29]} 13. a3 {[%clk 0:11:39]}  O-O {[%clk 0:13:29]} 14. Nbd2 {[%clk 0:11:39]}  h6 {[%clk 0:11:17]} 15. e4 {[%clk 0:11:36]}  Bh7 {[%clk 0:11:17]} 16. e5 {[%clk 0:11:36]}  Ne8 {[%clk 0:11:17]} 17. Nb3 {[%clk 0:11:36]}  a4 {[%clk 0:11:17]} 18. Nbd4 {[%clk 0:11:36]}  c5 {[%clk 0:11:09]} 19. Nb5 {[%clk 0:10:13]}  d4 {[%clk 0:11:09]} 20. Qd2 {[%clk 0:10:13]}  Nc7 {[%clk 0:11:09]} 21. Nxc7 {[%clk 0:10:13]}  Qxc7 {[%clk 0:11:09]} 22. Rfe1 {[%clk 0:10:13]}  Rfe8 {[%clk 0:10:54]} 23. Rad1 {[%clk 0:08:54]}  Rab8 {[%clk 0:08:38]} 24. b5 {[%clk 0:08:54]}  Ra8 {[%clk 0:08:38]} 25. Qe2 {[%clk 0:08:54]}  Qb8 {[%clk 0:08:03]} 26. Bc1 {[%clk 0:06:52]}  Bd8 {[%clk 0:08:03]} 27. Bd2 {[%clk 0:06:52]}  Bc7 {[%clk 0:08:03]} 28. h3 {[%clk 0:06:52]}  Qa7 {[%clk 0:08:03]} 29. g4 {[%clk 0:05:18]}  Rf8 {[%clk 0:07:39]} 30. Bf4 {[%clk 0:05:18]}  Rae8 {[%clk 0:07:39]} 31. Bg3 {[%clk 0:05:05]}  Qb8 {[%clk 0:07:39]} 32. Nd2 {[%clk 0:05:05]}  f6 {[%clk 0:07:39]} 33. f4 {[%clk 0:05:05]}  fxe5 {[%clk 0:04:40]} 34. fxe5 {[%clk 0:03:47]}  Rf7 {[%clk 0:04:40]} 35. Be4 {[%clk 0:03:47]}  Bxe4 {[%clk 0:04:40]} 36. Qxe4 {[%clk 0:03:47]}  Ref8 {[%clk 0:04:40]} 37. Re2 {[%clk 0:03:33]}  Ba5 {[%clk 0:03:23]} 38. Rf1 {[%clk 0:03:33]}  Bxd2 {[%clk 0:03:23]} 39. Rxf7 {[%clk 0:03:06]}  Rxf7 {[%clk 0:03:23]} 40. Rxd2 {[%clk 0:03:06]}  Rf8 {[%clk 0:03:23]} 41. Re2 {[%clk 0:03:06]}  Rf7 {[%clk 0:03:23]} 42. Rd2 {[%clk 0:03:06]}  Qc7 {[%clk 0:03:23]} 43. Kg2 {[%clk 0:03:06]}  Nf8 {[%clk 0:03:23]} 44. Rb2 {[%clk 0:03:06]}  Qa5 {[%clk 0:03:23]} 45. Be1 {[%clk 0:03:15]}  Qd8 {[%clk 0:00:55]} 46. Rf2 {[%clk 0:03:15]}  b6 {[%clk 0:00:55]} 47. Rxf7 {[%clk 0:03:15]}  Kxf7 {[%clk 0:00:55]} 48. h4 {[%clk 0:03:15]}  Kg8 {[%clk 0:00:55]} 49. Kg3 {[%clk 0:03:15]}  Qe8 {[%clk 0:00:55]} 50. h5 {[%clk 0:03:15]}  Qf7 {[%clk 0:00:55]} 51. Kg2 {[%clk 0:02:18]}  Qe7 {[%clk 0:00:29]} 52. Bg3 {[%clk 0:02:18]}  Qg5 {[%clk 0:00:29]} 53. Qf4 {[%clk 0:02:18]}  Qe7 {[%clk 0:00:29]} 54. Qf3 {[%clk 0:02:18]}  Qa7 {[%clk 0:00:29]} 55. Be1 {[%clk 0:02:18]}  Qe7 {[%clk 0:00:29]} 56. Bg3 {[%clk 0:02:18]}  Qg5 {[%clk 0:00:29]} 57. Bf4 {[%clk 0:02:18]}  Qh4 {[%clk 0:00:29]} 58. Bg3 {[%clk 0:02:18]}  Qe7 {[%clk 0:00:29]} 59. Bf4 {[%clk 0:01:11]}  Qa7 {[%clk 0:00:23]} 60. Bd2 {[%clk 0:01:11]}  Qc7 {[%clk 0:00:23]} 61. Qe4 {[%clk 0:01:11]}  Qe7 {[%clk 0:00:23]} 62. Kg3 {[%clk 0:01:11]}  Qf7 {[%clk 0:00:23]} 63. Bf4 {[%clk 0:01:11]}  Qa7 {[%clk 0:00:23]} 64. Bd2 {[%clk 0:01:11]}  Qf7 {[%clk 0:00:23]} 65. Qf3 {[%clk 0:01:11]}  Qc7 {[%clk 0:00:23]} 66. Bf4 {[%clk 0:01:11]}  g5 {[%clk 0:00:23]} 67. hxg6 {[%clk 0:01:11]}  Nxg6 {[%clk 0:00:23]} 68. Qe4 {[%clk 0:00:49]}  Kg7 {[%clk 0:00:41]} 69. Kg2 {[%clk 0:00:49]}  Qe7 {[%clk 0:00:41]} 70. Bg3 {[%clk 0:00:49]}  Qg5 {[%clk 0:00:41]} 71. Qb7+ {[%clk 0:00:49]}  Kf8 {[%clk 0:00:41]} 72. Qxb6 {[%clk 0:00:49]}  Qd2+ {[%clk 0:00:41]} 73. Kh3 {[%clk 0:00:49]}  Qxd3 {[%clk 0:00:41]} 74. Qxc5+ {[%clk 0:00:49]}  Kf7 {[%clk 0:00:41]} 75. Qc7+ {[%clk 0:00:49]}  Ne7 {[%clk 0:00:41]} 76. b6 {[%clk 0:00:49]}  Qf1+ {[%clk 0:00:41]} 77. Kh2 {[%clk 0:00:49]}  Qe2+ {[%clk 0:00:41]} 78. Kh3 {[%clk 0:00:41]}  d3 {[%clk 0:00:36]} 79. Bh4 {[%clk 0:00:41]}  Qf3+ {[%clk 0:00:36]} 80. Kh2 {[%clk 0:00:41]}  Qf4+ {[%clk 0:00:36]} 81. Kh3 {[%clk 0:00:41]}  Qe3+ {[%clk 0:00:36]} 82. Kg2 {[%clk 0:00:41]}  Qe4+ {[%clk 0:00:36]} 83. Kh2 {[%clk 0:00:41]}  Qe2+ {[%clk 0:00:36]} 84. Kh3 {[%clk 0:00:41]}  Qf3+ {[%clk 0:00:36]} 85. Kh2 {[%clk 0:00:41]}  Qf4+ {[%clk 0:00:36]} 86. Kh3 {[%clk 0:00:41]}  Qe3+ {[%clk 0:00:36]} 87. Kg2 {[%clk 0:00:41]}  Qd2+ {[%clk 0:00:36]} 88. Kh3 {[%clk 0:01:01]}  Qe3+ {[%clk 0:00:24]} 1/2-1/2


[Site "http://www.Chess.com"]

[Event "FIDE World Rapid Chess Championship 2021"]
[White "Bluebaum, Matthias"]
[Black "Artemiev, Vladislav"]
[WhiteFideId "24651516"]
[BlackFideId "24101605"]
[WhiteElo "2575"]
[BlackElo "2714"]
[Result "1/2-1/2"]
[Round "12"]
[TimeControl "900+10"]
[Date "2021.12.28"]
[WhiteClock "0:02:11"]
[BlackClock "0:00:22"]

1. d4 {[%clk 0:15:18]}  d5 {[%clk 0:15:00]} 2. c4 {[%clk 0:15:18]}  e6 {[%clk 0:15:00]} 3. Nc3 {[%clk 0:15:18]}  Nf6 {[%clk 0:15:00]} 4. cxd5 {[%clk 0:15:18]}  exd5 {[%clk 0:15:00]} 5. Bg5 {[%clk 0:15:18]}  c6 {[%clk 0:15:00]} 6. e3 {[%clk 0:15:18]}  Be7 {[%clk 0:14:05]} 7. Bd3 {[%clk 0:16:02]}  Nbd7 {[%clk 0:14:05]} 8. h3 {[%clk 0:16:02]}  Nf8 {[%clk 0:12:35]} 9. Nf3 {[%clk 0:15:51]}  Ne6 {[%clk 0:12:35]} 10. Bh4 {[%clk 0:15:51]}  g6 {[%clk 0:08:59]} 11. O-O {[%clk 0:15:31]}  O-O {[%clk 0:08:59]} 12. Rb1 {[%clk 0:15:31]}  a5 {[%clk 0:08:59]} 13. a3 {[%clk 0:15:31]}  Ng7 {[%clk 0:08:59]} 14. b4 {[%clk 0:15:31]}  axb4 {[%clk 0:08:59]} 15. axb4 {[%clk 0:15:31]}  Bf5 {[%clk 0:08:59]} 16. b5 {[%clk 0:15:15]}  Bxd3 {[%clk 0:08:13]} 17. Qxd3 {[%clk 0:14:38]}  Nf5 {[%clk 0:05:59]} 18. Bxf6 {[%clk 0:14:38]}  Bxf6 {[%clk 0:05:59]} 19. bxc6 {[%clk 0:14:38]}  bxc6 {[%clk 0:05:59]} 20. Rb3 {[%clk 0:14:38]}  Nd6 {[%clk 0:06:19]} 21. Rfb1 {[%clk 0:13:33]}  Qc7 {[%clk 0:06:19]} 22. Qc2 {[%clk 0:13:33]}  Rfc8 {[%clk 0:04:44]} 23. Nd2 {[%clk 0:12:51]}  Qa7 {[%clk 0:04:44]} 24. R3b2 {[%clk 0:12:51]}  Qc7 {[%clk 0:02:43]} 25. Na4 {[%clk 0:12:12]}  Nb5 {[%clk 0:02:43]} 26. Ra2 {[%clk 0:10:43]}  Be7 {[%clk 0:01:10]} 27. Rba1 {[%clk 0:10:43]}  Ra7 {[%clk 0:01:10]} 28. Nc5 {[%clk 0:10:05]}  Rca8 {[%clk 0:00:20]} 29. Rxa7 {[%clk 0:10:05]}  Rxa7 {[%clk 0:00:20]} 30. Rc1 {[%clk 0:10:05]}  Bd6 {[%clk 0:00:20]} 31. Nd3 {[%clk 0:10:05]}  Ba3 {[%clk 0:00:20]} 32. Ra1 {[%clk 0:07:23]}  Bd6 {[%clk 0:00:26]} 33. Rxa7 {[%clk 0:07:18]}  Nxa7 {[%clk 0:00:26]} 34. Nf3 {[%clk 0:07:18]}  Nc8 {[%clk 0:00:26]} 35. Qa4 {[%clk 0:05:26]}  Ne7 {[%clk 0:00:43]} 36. Qa8+ {[%clk 0:05:26]}  Kg7 {[%clk 0:00:43]} 37. Nde5 {[%clk 0:05:26]}  Qb8 {[%clk 0:00:43]} 38. Qxb8 {[%clk 0:04:07]}  Bxb8 {[%clk 0:00:29]} 39. Nd3 {[%clk 0:04:07]}  Bd6 {[%clk 0:00:29]} 40. g4 {[%clk 0:04:07]}  h6 {[%clk 0:00:29]} 41. Kg2 {[%clk 0:04:07]}  Kf6 {[%clk 0:00:29]} 42. Nfe5 {[%clk 0:04:07]}  Bxe5 {[%clk 0:00:29]} 43. Nxe5 {[%clk 0:03:55]}  Ke6 {[%clk 0:00:12]} 44. Nd3 {[%clk 0:03:55]}  g5 {[%clk 0:00:12]} 45. f4 {[%clk 0:03:55]}  f6 {[%clk 0:00:12]} 46. Kf3 {[%clk 0:03:55]}  Nc8 {[%clk 0:00:12]} 47. Nc5+ {[%clk 0:03:55]}  Ke7 {[%clk 0:00:12]} 48. Na6 {[%clk 0:03:55]}  Kd7 {[%clk 0:00:12]} 49. Nc5+ {[%clk 0:03:55]}  Ke7 {[%clk 0:00:12]} 50. Na6 {[%clk 0:02:11]}  Kd7 {[%clk 0:00:22]} 51. Nc5+ {[%clk 0:02:11]}  Ke7 {[%clk 0:00:22]} 1/2-1/2


[Site "http://www.Chess.com"]

[Event "FIDE World Rapid Chess Championship 2021"]
[White "Nihal, Sarin"]
[Black "Paravyan, David"]
[WhiteFideId "25092340"]
[BlackFideId "4194985"]
[WhiteElo "2500"]
[BlackElo "2671"]
[Result "1/2-1/2"]
[Round "12"]
[TimeControl "900+10"]
[Date "2021.12.28"]
[WhiteClock "0:00:27"]
[BlackClock "0:01:35"]

1. d4 {[%clk 0:15:00]}  Nf6 {[%clk 0:15:17]} 2. Nf3 {[%clk 0:15:06]}  g6 {[%clk 0:15:17]} 3. g3 {[%clk 0:15:06]}  Bg7 {[%clk 0:15:17]} 4. Bg2 {[%clk 0:15:06]}  d5 {[%clk 0:15:17]} 5. O-O {[%clk 0:15:06]}  O-O {[%clk 0:15:17]} 6. c3 {[%clk 0:15:06]}  Nbd7 {[%clk 0:15:17]} 7. a4 {[%clk 0:15:06]}  a5 {[%clk 0:15:17]} 8. Re1 {[%clk 0:15:06]}  Re8 {[%clk 0:15:17]} 9. Bf4 {[%clk 0:14:26]}  Nh5 {[%clk 0:16:02]} 10. Bg5 {[%clk 0:14:26]}  h6 {[%clk 0:16:02]} 11. Be3 {[%clk 0:14:26]}  c6 {[%clk 0:16:02]} 12. Nbd2 {[%clk 0:14:26]}  Nhf6 {[%clk 0:16:02]} 13. h3 {[%clk 0:14:26]}  e5 {[%clk 0:16:02]} 14. dxe5 {[%clk 0:14:26]}  Nxe5 {[%clk 0:16:02]} 15. Nxe5 {[%clk 0:13:42]}  Rxe5 {[%clk 0:15:05]} 16. Bd4 {[%clk 0:13:42]}  Re8 {[%clk 0:15:05]} 17. Qb3 {[%clk 0:12:00]}  Ne4 {[%clk 0:14:29]} 18. Bxg7 {[%clk 0:12:00]}  Kxg7 {[%clk 0:13:28]} 19. Nxe4 {[%clk 0:10:33]}  dxe4 {[%clk 0:13:28]} 20. Rad1 {[%clk 0:10:33]}  Qe7 {[%clk 0:13:28]} 21. e3 {[%clk 0:10:33]}  Bf5 {[%clk 0:13:28]} 22. Qb6 {[%clk 0:09:23]}  Ra6 {[%clk 0:12:46]} 23. Qd4+ {[%clk 0:09:23]}  Kh7 {[%clk 0:12:46]} 24. Bf1 {[%clk 0:08:58]}  c5 {[%clk 0:10:51]} 25. Qc4 {[%clk 0:08:58]}  Kg7 {[%clk 0:10:55]} 26. Rd2 {[%clk 0:06:27]}  Rd6 {[%clk 0:10:55]} 27. Red1 {[%clk 0:06:27]}  Rxd2 {[%clk 0:10:55]} 28. Rxd2 {[%clk 0:06:27]}  b6 {[%clk 0:10:55]} 29. Qd5 {[%clk 0:06:27]}  h5 {[%clk 0:08:44]} 30. h4 {[%clk 0:07:01]}  Qf6 {[%clk 0:08:44]} 31. Qd6 {[%clk 0:06:12]}  Re6 {[%clk 0:06:57]} 32. Qf4 {[%clk 0:06:12]}  Re5 {[%clk 0:06:57]} 33. Bc4 {[%clk 0:06:12]}  Qe7 {[%clk 0:06:57]} 34. Rd5 {[%clk 0:06:12]}  f6 {[%clk 0:06:11]} 35. Kh2 {[%clk 0:05:09]}  Bd7 {[%clk 0:05:24]} 36. Rxe5 {[%clk 0:03:43]}  Qxe5 {[%clk 0:05:24]} 37. Qxe5 {[%clk 0:03:43]}  fxe5 {[%clk 0:05:24]} 38. b3 {[%clk 0:03:43]}  Kf6 {[%clk 0:03:40]} 39. Kg2 {[%clk 0:03:02]}  Be6 {[%clk 0:03:40]} 40. Bxe6 {[%clk 0:03:02]}  Kxe6 {[%clk 0:03:40]} 41. c4 {[%clk 0:03:02]}  Kf6 {[%clk 0:02:06]} 42. Kh3 {[%clk 0:02:36]}  g5 {[%clk 0:01:35]} 43. g4 {[%clk 0:00:27]}  Kg6 {[%clk 0:01:35]} 44. Kg3 {[%clk 0:00:27]}  hxg4 {[%clk 0:01:35]} 45. Kxg4 {[%clk 0:00:27]}  gxh4 {[%clk 0:01:35]} 46. Kxh4 {[%clk 0:00:27]}  Kh6 {[%clk 0:01:35]} 47. Kg4 {[%clk 0:00:27]}  Kg6 {[%clk 0:01:35]} 48. Kh4 {[%clk 0:00:27]}  Kh6 {[%clk 0:01:35]} 49. Kg4 {[%clk 0:00:27]}  Kg6 {[%clk 0:01:35]} 50. Kh4 {[%clk 0:00:27]} 1/2-1/2


[Site "http://www.Chess.com"]

[Event "FIDE World Rapid Chess Championship 2021"]
[White "Martirosyan, Haik M."]
[Black "Gelfand, Boris"]
[WhiteFideId "13306553"]
[BlackFideId "2805677"]
[WhiteElo "2377"]
[BlackElo "2648"]
[Result "1/2-1/2"]
[Round "12"]
[TimeControl "900+10"]
[Date "2021.12.28"]
[WhiteClock "0:00:56"]
[BlackClock "0:00:17"]

1. d4 {[%clk 0:15:00]}  Nf6 {[%clk 0:15:19]} 2. c4 {[%clk 0:15:18]}  e6 {[%clk 0:15:19]} 3. Nf3 {[%clk 0:15:27]}  d5 {[%clk 0:15:19]} 4. Nc3 {[%clk 0:15:27]}  c6 {[%clk 0:15:19]} 5. Bg5 {[%clk 0:15:27]}  h6 {[%clk 0:15:19]} 6. Bxf6 {[%clk 0:15:27]}  Qxf6 {[%clk 0:15:19]} 7. e3 {[%clk 0:15:27]}  g6 {[%clk 0:15:19]} 8. Bd3 {[%clk 0:15:27]}  Bg7 {[%clk 0:15:19]} 9. O-O {[%clk 0:15:27]}  dxc4 {[%clk 0:15:19]} 10. Bxc4 {[%clk 0:15:27]}  Nd7 {[%clk 0:15:19]} 11. Ne4 {[%clk 0:15:27]}  Qe7 {[%clk 0:15:19]} 12. Qc2 {[%clk 0:15:27]}  b6 {[%clk 0:14:32]} 13. Bb5 {[%clk 0:16:28]}  Bb7 {[%clk 0:14:32]} 14. Bxc6 {[%clk 0:16:28]}  Rc8 {[%clk 0:14:32]} 15. Bxd7+ {[%clk 0:16:28]}  Qxd7 {[%clk 0:14:32]} 16. Nc3 {[%clk 0:14:26]}  O-O {[%clk 0:12:57]} 17. Qe2 {[%clk 0:13:24]}  Qc6 {[%clk 0:12:57]} 18. Rac1 {[%clk 0:13:24]}  Rfd8 {[%clk 0:11:33]} 19. Rfd1 {[%clk 0:12:35]}  a6 {[%clk 0:11:33]} 20. a3 {[%clk 0:12:35]}  Qc4 {[%clk 0:11:33]} 21. Qxc4 {[%clk 0:12:22]}  Rxc4 {[%clk 0:09:29]} 22. Ne5 {[%clk 0:12:22]}  Rc7 {[%clk 0:09:05]} 23. f4 {[%clk 0:10:14]}  g5 {[%clk 0:07:31]} 24. g3 {[%clk 0:09:13]}  Rdc8 {[%clk 0:07:31]} 25. Nd3 {[%clk 0:09:13]}  Bf8 {[%clk 0:05:37]} 26. Na4 {[%clk 0:08:41]}  Rc2 {[%clk 0:05:37]} 27. Nxb6 {[%clk 0:08:41]}  Rg2+ {[%clk 0:05:37]} 28. Kf1 {[%clk 0:08:41]}  Rxc1 {[%clk 0:04:46]} 29. Rxc1 {[%clk 0:07:31]}  Rxh2 {[%clk 0:04:46]} 30. Nd7 {[%clk 0:07:31]}  gxf4 {[%clk 0:04:46]} 31. exf4 {[%clk 0:05:59]}  Bg7 {[%clk 0:04:17]} 32. Rc7 {[%clk 0:05:59]}  Bd5 {[%clk 0:04:17]} 33. Rc8+ {[%clk 0:05:09]}  Kh7 {[%clk 0:02:45]} 34. Nf8+ {[%clk 0:05:09]}  Bxf8 {[%clk 0:02:49]} 35. Rxf8 {[%clk 0:03:02]}  Kg7 {[%clk 0:02:49]} 36. Rd8 {[%clk 0:03:02]}  Rd2 {[%clk 0:02:49]} 37. Ne5 {[%clk 0:02:11]}  Rxd4 {[%clk 0:01:33]} 38. Rd7 {[%clk 0:02:11]}  Bc4+ {[%clk 0:01:33]} 39. Kf2 {[%clk 0:02:11]}  Rxd7 {[%clk 0:01:33]} 40. Nxd7 {[%clk 0:02:11]}  f6 {[%clk 0:01:33]} 41. Nc5 {[%clk 0:01:58]}  Kf7 {[%clk 0:00:16]} 42. b3 {[%clk 0:01:58]}  Bd5 {[%clk 0:00:16]} 43. b4 {[%clk 0:01:58]}  Bc4 {[%clk 0:00:16]} 44. a4 {[%clk 0:01:58]}  e5 {[%clk 0:00:16]} 45. fxe5 {[%clk 0:01:58]}  fxe5 {[%clk 0:00:16]} 46. Ke3 {[%clk 0:01:58]}  Ke7 {[%clk 0:00:16]} 47. Ne4 {[%clk 0:01:58]}  h5 {[%clk 0:00:16]} 48. Nc3 {[%clk 0:01:58]}  Ke6 {[%clk 0:00:16]} 49. Ke4 {[%clk 0:01:58]}  Bf1 {[%clk 0:00:16]} 50. Ke3 {[%clk 0:00:54]}  Kf5 {[%clk 0:00:52]} 51. Ne4 {[%clk 0:00:54]}  Ke6 {[%clk 0:00:52]} 52. Nc3 {[%clk 0:00:54]}  Kf5 {[%clk 0:00:52]} 53. b5 {[%clk 0:00:54]}  axb5 {[%clk 0:00:52]} 54. Nxb5 {[%clk 0:00:54]}  Kg4 {[%clk 0:00:52]} 55. Kf2 {[%clk 0:00:54]}  Bd3 {[%clk 0:00:52]} 56. Nc3 {[%clk 0:00:54]}  Kf5 {[%clk 0:00:52]} 57. Ke3 {[%clk 0:00:54]}  Bc4 {[%clk 0:00:52]} 58. Ne4 {[%clk 0:00:54]}  Ke6 {[%clk 0:00:42]} 59. a5 {[%clk 0:00:40]}  Kd5 {[%clk 0:00:42]} 60. Nf6+ {[%clk 0:00:40]}  Kc6 {[%clk 0:00:42]} 61. Nxh5 {[%clk 0:00:40]}  Be6 {[%clk 0:00:42]} 62. Ke4 {[%clk 0:00:40]}  Kb5 {[%clk 0:00:42]} 63. Kxe5 {[%clk 0:00:40]}  Bg4 {[%clk 0:00:42]} 64. Nf6 {[%clk 0:00:40]}  Bh3 {[%clk 0:00:42]} 65. Ne4 {[%clk 0:00:56]}  Kxa5 {[%clk 0:00:17]} 66. Ng5 {[%clk 0:00:56]}  Bg4 {[%clk 0:00:17]} 67. Kf4 {[%clk 0:00:56]}  Bc8 {[%clk 0:00:17]} 68. Ne4 {[%clk 0:00:56]}  Kb6 {[%clk 0:00:17]} 69. Nd6 {[%clk 0:00:56]}  Bh3 {[%clk 0:00:17]} 70. g4 {[%clk 0:00:56]}  Bxg4 {[%clk 0:00:17]} 71. Kxg4 {[%clk 0:00:56]} 1/2-1/2


[Site "http://www.Chess.com"]

[Event "FIDE World Rapid Chess Championship 2021"]
[White "Anton Guijarro, David"]
[Black "Puranik, Abhimanyu"]
[WhiteFideId "2285525"]
[BlackFideId "5061245"]
[WhiteElo "2627"]
[BlackElo "2472"]
[Result "1-0"]
[Round "12"]
[TimeControl "900+10"]
[Date "2021.12.28"]
[WhiteClock "0:01:40"]
[BlackClock "0:01:44"]

1. Nf3 {[%clk 0:15:00]}  Nf6 {[%clk 0:15:18]} 2. c4 {[%clk 0:15:18]}  c5 {[%clk 0:15:18]} 3. Nc3 {[%clk 0:15:18]}  d5 {[%clk 0:15:18]} 4. cxd5 {[%clk 0:15:18]}  Nxd5 {[%clk 0:15:18]} 5. g3 {[%clk 0:15:18]}  Nc6 {[%clk 0:15:18]} 6. Bg2 {[%clk 0:15:18]}  Nc7 {[%clk 0:15:18]} 7. a3 {[%clk 0:15:18]}  e5 {[%clk 0:14:20]} 8. b4 {[%clk 0:15:07]}  Bd6 {[%clk 0:14:20]} 9. bxc5 {[%clk 0:15:08]}  Bxc5 {[%clk 0:11:54]} 10. Bb2 {[%clk 0:15:08]}  O-O {[%clk 0:11:54]} 11. Ne4 {[%clk 0:11:26]}  Bd4 {[%clk 0:10:36]} 12. Nxd4 {[%clk 0:11:26]}  Nxd4 {[%clk 0:10:36]} 13. e3 {[%clk 0:10:32]}  Nc6 {[%clk 0:09:20]} 14. O-O {[%clk 0:10:32]}  f5 {[%clk 0:09:20]} 15. Nc5 {[%clk 0:10:32]}  Kh8 {[%clk 0:09:13]} 16. Rc1 {[%clk 0:09:07]}  Qd6 {[%clk 0:09:13]} 17. f4 {[%clk 0:07:59]}  e4 {[%clk 0:06:55]} 18. d3 {[%clk 0:07:59]}  exd3 {[%clk 0:06:55]} 19. Qxd3 {[%clk 0:07:59]}  Qe7 {[%clk 0:06:55]} 20. Rfe1 {[%clk 0:07:23]}  Rd8 {[%clk 0:06:06]} 21. Qc3 {[%clk 0:04:37]}  Qf8 {[%clk 0:06:06]} 22. e4 {[%clk 0:04:42]}  Nb5 {[%clk 0:03:27]} 23. Qe3 {[%clk 0:04:42]}  fxe4 {[%clk 0:03:27]} 24. Bxe4 {[%clk 0:04:42]}  Nd6 {[%clk 0:03:27]} 25. Bg2 {[%clk 0:04:42]}  Nf5 {[%clk 0:03:27]} 26. Qf2 {[%clk 0:04:42]}  Rb8 {[%clk 0:03:27]} 27. g4 {[%clk 0:03:02]}  Nfd4 {[%clk 0:03:06]} 28. f5 {[%clk 0:03:02]}  b6 {[%clk 0:03:06]} 29. Ne6 {[%clk 0:03:02]}  Bxe6 {[%clk 0:03:06]} 30. Bxc6 {[%clk 0:03:02]}  Nxc6 {[%clk 0:01:44]} 31. Rxe6 {[%clk 0:02:57]}  Na5 {[%clk 0:01:44]} 32. Rc7 {[%clk 0:02:57]}  Rd1+ {[%clk 0:01:44]} 33. Re1 {[%clk 0:02:57]}  Rxe1+ {[%clk 0:01:44]} 34. Qxe1 {[%clk 0:02:57]}  Re8 {[%clk 0:01:44]} 35. Qc3 {[%clk 0:01:40]} 1-0


[Site "http://www.Chess.com"]

[Event "FIDE World Rapid Chess Championship 2021"]
[White "Amin, Bassem"]
[Black "Sargsyan, Shant"]
[WhiteFideId "10601457"]
[BlackFideId "13306766"]
[WhiteElo "2614"]
[BlackElo "2344"]
[Result "0-1"]
[Round "12"]
[TimeControl "900+10"]
[Date "2021.12.28"]
[WhiteClock "0:00:52"]
[BlackClock "0:02:16"]

1. e4 {[%clk 0:15:00]}  e5 {[%clk 0:15:00]} 2. Nf3 {[%clk 0:15:18]}  Nc6 {[%clk 0:15:00]} 3. Bc4 {[%clk 0:15:18]}  Nf6 {[%clk 0:15:00]} 4. d3 {[%clk 0:15:18]}  Bc5 {[%clk 0:15:00]} 5. O-O {[%clk 0:15:18]}  h6 {[%clk 0:15:00]} 6. c3 {[%clk 0:15:18]}  d6 {[%clk 0:15:00]} 7. Re1 {[%clk 0:15:18]}  O-O {[%clk 0:15:00]} 8. h3 {[%clk 0:15:18]}  a5 {[%clk 0:15:00]} 9. d4 {[%clk 0:15:09]}  Ba7 {[%clk 0:15:27]} 10. Bb3 {[%clk 0:15:09]}  Re8 {[%clk 0:15:27]} 11. Bc2 {[%clk 0:15:09]}  exd4 {[%clk 0:14:26]} 12. cxd4 {[%clk 0:15:06]}  Nb4 {[%clk 0:14:26]} 13. Nc3 {[%clk 0:15:06]}  Nxc2 {[%clk 0:14:26]} 14. Qxc2 {[%clk 0:15:06]}  c6 {[%clk 0:14:26]} 15. a4 {[%clk 0:15:06]}  Be6 {[%clk 0:14:26]} 16. Bf4 {[%clk 0:15:06]}  d5 {[%clk 0:11:29]} 17. e5 {[%clk 0:15:04]}  Ne4 {[%clk 0:11:29]} 18. Nxe4 {[%clk 0:15:09]}  dxe4 {[%clk 0:10:13]} 19. Qxe4 {[%clk 0:15:09]}  Bd5 {[%clk 0:10:13]} 20. Qd3 {[%clk 0:15:09]}  Bxf3 {[%clk 0:10:13]} 21. Qxf3 {[%clk 0:15:09]}  Qxd4 {[%clk 0:10:13]} 22. Rad1 {[%clk 0:15:09]}  Qxb2 {[%clk 0:10:26]} 23. Rb1 {[%clk 0:12:14]}  Qa2 {[%clk 0:08:59]} 24. Rxb7 {[%clk 0:12:07]}  Bd4 {[%clk 0:08:59]} 25. Bg3 {[%clk 0:12:06]}  Qe6 {[%clk 0:07:26]} 26. Re4 {[%clk 0:08:36]}  Rad8 {[%clk 0:07:29]} 27. Qg4 {[%clk 0:07:04]}  c5 {[%clk 0:06:44]} 28. Qxe6 {[%clk 0:07:04]}  Rxe6 {[%clk 0:06:44]} 29. Ra7 {[%clk 0:07:04]}  f5 {[%clk 0:05:49]} 30. Re1 {[%clk 0:01:20]}  g5 {[%clk 0:05:49]} 31. Bh2 {[%clk 0:01:20]}  Rb8 {[%clk 0:04:20]} 32. Kf1 {[%clk 0:00:40]}  f4 {[%clk 0:04:20]} 33. g3 {[%clk 0:00:40]}  f3 {[%clk 0:02:16]} 34. g4 {[%clk 0:00:52]}  Rb2 {[%clk 0:02:16]} 35. Bg3 {[%clk 0:00:52]}  c4 {[%clk 0:02:16]} 36. Rxa5 {[%clk 0:00:52]}  c3 {[%clk 0:02:16]} 37. Rd5 {[%clk 0:00:52]}  Rd2 {[%clk 0:02:16]} 38. a5 {[%clk 0:00:52]}  c2 {[%clk 0:02:16]} 39. Rd7 {[%clk 0:00:52]}  Rxe5 {[%clk 0:02:16]} 40. Rd8+ {[%clk 0:00:52]}  Kf7 {[%clk 0:02:16]} 41. Rd7+ {[%clk 0:00:52]}  Ke6 {[%clk 0:02:16]} 42. Bxe5 {[%clk 0:00:52]}  Rxf2+ {[%clk 0:02:16]} 43. Kg1 {[%clk 0:00:52]}  Re2+ {[%clk 0:02:16]} 0-1


[Site "http://www.Chess.com"]